{"text_format":"3","workbook":"xlsx","n_sheets":2,"sheets":["התחלה","תקציב חודשי אישי"],"read":"whole","date_system":"1900"}

{"sheet":"התחלה","index":0,"n_rows":7,"n_cols":2,"rows_kept":7}
[null,"אודות תבנית זו"]
[null,"השתמש בגיליון עבודה זה של תקציב חודשי אישי כדי לעקוב אחר ההכנסות החודשיות המתוכננות/בפועל והעלויות המתוכננות/בפועל."]
[null,"הזן את ההוצאות שנגרמו בקטגוריות שונות בטבלאות המתאימות."]
[null,"היתרה המתוכננת, היתרה בפועל וההפרש מחושבים באופן אוטומטי."]
[null,"הערה: "]
[null,"הוראות נוספות סופקו בעמודה A בגליון העבודה 'תקציב חודשי אישי'. טקסט זה הוסתר במכוון. כדי להסיר את הטקסט, בחר את עמודה A ולאחר מכן הקש DELETE. כדי לבטל את הסתרת הטקסט, בחר את עמודה A ולאחר מכן שנה את צבע הגופן."]
[null,"לקבלת מידע נוסף על הטבלאות בגליון העבודה, הקש SHIFT ולאחר מכן F10 בתוך טבלה, בחר את האפשרות 'טבלה' ולאחר מכן בחר 'טקסט חלופי'."]

{"sheet":"תקציב חודשי אישי","index":1,"n_rows":64,"n_cols":10,"rows_kept":64,"merged":[[3,1,5,1],[3,2,3,3],[3,6,4,8],[3,9,4,9],[4,2,4,3],[5,2,5,3],[5,6,6,8],[5,9,6,9],[7,1,9,1],[7,2,7,3],[7,6,8,8],[7,9,8,9],[8,2,8,3],[9,2,9,3],[58,6,59,8],[58,9,59,9],[60,6,61,8],[60,9,61,9],[62,6,63,8],[62,9,63,9]]}
["צור תקציב חודשי אישי בגליון עבודה זה. הוראות שימוש בגליון עבודה זה מופיעות בתאים שבעמודה זו. הקש על החץ למטה כדי להתחיל."]
["הכותרת של גליון עבודה זה מופיעה בתא משמאל. ההוראה הבאה מופיעה בתא A4.","תקציב חודשי אישי"]
[]
["התווית 'הכנסות חודשיות מתוכננות' מופיעה בתא משמאל. הזן הכנסה 1 בתא E4 והכנסה נוספת בתא E5 כדי לחשב את סה\"כ ההכנסות החודשיות בתא E6. ההוראה הבאה מופיעה בתא A6.","הכנסות חודשיות מתוכננות","הכנסה 1",null,{"v":4300,"d":"₪ 4,300.00"},null,"יתרה מתוכננת \n(ההכנסות המתוכננות פחות ההוצאות)",null,null,{"$f":"E6-J59","v":{"v":3405,"d":"₪ 3,405.00"}}]
[null,null,"הכנסה נוספת",null,{"v":300,"d":"₪ 300.00"}]
["היתרה המתוכננת מחושבת באופן אוטומטי בתא J4, היתרה בפועל מחושבת באופן אוטומטי בתא J6, וההפרש מחושב באופן אוטומטי בתא J8. ההוראה הבאה מופיעה בתא A8.",null,"סה\"כ הכנסות חודשיות",null,{"$f":"SUM(E4:E5)","v":{"v":4600,"d":"₪ 4,600.00"}},null,"יתרה בפועל \n(ההכנסות בפועל פחות ההוצאות)",null,null,{"$f":"E10-J61","v":{"v":3064,"d":"₪ 3,064.00"}}]
[]
["התווית 'הכנסות חודשיות בפועל' מופיעה בתא משמאל. הזן הכנסה 1 בתא E8 והכנסה נוספת בתא E9 כדי לחשב את סה\"כ ההכנסות החודשיות בתא E10. ההוראה הבאה מופיעה בתא A12.","הכנסות חודשיות בפועל","הכנסה 1",null,{"v":4000,"d":"₪ 4,000.00"},null,"הפרש \n(הערכים בפועל פחות הערכים המתוכננים)",null,null,{"$f":"J6-J4","v":{"v":-341,"d":"₪ 341.00"}}]
[null,null,"הכנסה נוספת",null,{"v":300,"d":"₪ 300.00"}]
[null,null,"סה\"כ הכנסות חודשיות",null,{"$f":"SUM(E8:E9)","v":{"v":4300,"d":"₪ 4,300.00"}}]
[]
["הזן פרטים בטבלה 'דיור' שמתחילה בתא משמאל ובטבלה 'בידור' שמתחילה בתא G12. ההוראה הבאה מופיעה בתא A25.","דיור","עלות מתוכננת","עלות בפועל","הפרש",null,"בידור","עלות מתוכננת","עלות בפועל","הפרש"]
[null,"משכנתה או שכ\"ד",{"v":1000,"d":"₪ 1,000.00"},{"v":1000,"d":"₪ 1,000.00"},{"$f":"דיור[[#This Row],[עלות מתוכננת]]-דיור[[#This Row],[עלות בפועל]]","v":{"v":0,"d":"₪ 0.00"}},null,"יציאה בערב",null,null,{"$f":"בידור[[#This Row],[עלות מתוכננת]]-בידור[[#This Row],[עלות בפועל]]","v":{"v":0,"d":"₪ 0.00"}}]
[null,"טלפון",{"v":54,"d":"₪ 54.00"},{"v":100,"d":"₪ 100.00"},{"$f":"דיור[[#This Row],[עלות מתוכננת]]-דיור[[#This Row],[עלות בפועל]]","v":{"v":-46,"d":"-₪ 46.00"}},null,"פלטפורמות מוסיקה",null,null,{"$f":"בידור[[#This Row],[עלות מתוכננת]]-בידור[[#This Row],[עלות בפועל]]","v":{"v":0,"d":"₪ 0.00"}}]
[null,"חשמל",{"v":44,"d":"₪ 44.00"},{"v":56,"d":"₪ 56.00"},{"$f":"דיור[[#This Row],[עלות מתוכננת]]-דיור[[#This Row],[עלות בפועל]]","v":{"v":-12,"d":"-₪ 12.00"}},null,"סרטים",null,null,{"$f":"בידור[[#This Row],[עלות מתוכננת]]-בידור[[#This Row],[עלות בפועל]]","v":{"v":0,"d":"₪ 0.00"}}]
[null,"גז",{"v":22,"d":"₪ 22.00"},{"v":28,"d":"₪ 28.00"},{"$f":"דיור[[#This Row],[עלות מתוכננת]]-דיור[[#This Row],[עלות בפועל]]","v":{"v":-6,"d":"-₪ 6.00"}},null,"מופעים",null,null,{"$f":"בידור[[#This Row],[עלות מתוכננת]]-בידור[[#This Row],[עלות בפועל]]","v":{"v":0,"d":"₪ 0.00"}}]
[null,"מים וביוב",{"v":8,"d":"₪ 8.00"},{"v":8,"d":"₪ 8.00"},{"$f":"דיור[[#This Row],[עלות מתוכננת]]-דיור[[#This Row],[עלות בפועל]]","v":{"v":0,"d":"₪ 0.00"}},null,"אירועי ספורט",null,null,{"$f":"בידור[[#This Row],[עלות מתוכננת]]-בידור[[#This Row],[עלות בפועל]]","v":{"v":0,"d":"₪ 0.00"}}]
[null,"טלוויזיה בכבלים",{"v":34,"d":"₪ 34.00"},{"v":34,"d":"₪ 34.00"},{"$f":"דיור[[#This Row],[עלות מתוכננת]]-דיור[[#This Row],[עלות בפועל]]","v":{"v":0,"d":"₪ 0.00"}},null,"תיאטרון",null,null,{"$f":"בידור[[#This Row],[עלות מתוכננת]]-בידור[[#This Row],[עלות בפועל]]","v":{"v":0,"d":"₪ 0.00"}}]
[null,"סילוק פסולת",{"v":10,"d":"₪ 10.00"},{"v":10,"d":"₪ 10.00"},{"$f":"דיור[[#This Row],[עלות מתוכננת]]-דיור[[#This Row],[עלות בפועל]]","v":{"v":0,"d":"₪ 0.00"}},null,"אחר",null,null,{"$f":"בידור[[#This Row],[עלות מתוכננת]]-בידור[[#This Row],[עלות בפועל]]","v":{"v":0,"d":"₪ 0.00"}}]
[null,"תחזוקה או תיקונים",{"v":23,"d":"₪ 23.00"},{"v":0,"d":"₪ 0.00"},{"$f":"דיור[[#This Row],[עלות מתוכננת]]-דיור[[#This Row],[עלות בפועל]]","v":{"v":23,"d":"₪ 23.00"}},null,"אחר",null,null,{"$f":"בידור[[#This Row],[עלות מתוכננת]]-בידור[[#This Row],[עלות בפועל]]","v":{"v":0,"d":"₪ 0.00"}}]
[null,"ציוד",{"v":0,"d":"₪ 0.00"},{"v":0,"d":"₪ 0.00"},{"$f":"דיור[[#This Row],[עלות מתוכננת]]-דיור[[#This Row],[עלות בפועל]]","v":{"v":0,"d":"₪ 0.00"}},null,"אחר",null,null,{"$f":"בידור[[#This Row],[עלות מתוכננת]]-בידור[[#This Row],[עלות בפועל]]","v":{"v":0,"d":"₪ 0.00"}}]
[null,"אחר",{"v":0,"d":"₪ 0.00"},{"v":0,"d":"₪ 0.00"},{"$f":"דיור[[#This Row],[עלות מתוכננת]]-דיור[[#This Row],[עלות בפועל]]","v":{"v":0,"d":"₪ 0.00"}},null,"סכום ביניים",null,null,{"$f":"SUBTOTAL(109,בידור[הפרש])","v":{"v":0,"d":"₪ 0.00"}}]
[null,"סכום ביניים",null,null,{"$f":"SUBTOTAL(109,דיור[הפרש])","v":{"v":-41,"d":"-₪ 41.00"}}]
[{"$nulls":6},"הלוואות","עלות מתוכננת","עלות בפועל","הפרש"]
["הזן פרטים בטבלה 'תחבורה' שמתחילה בתא משמאל ובטבלה 'הלוואות' שמתחילה בתא G24. ההוראה הבאה מופיעה בתא A35.","תחבורה","עלות מתוכננת","עלות בפועל","הפרש",null,"אישית",null,null,{"$f":"הלוואות[[#This Row],[עלות מתוכננת]]-הלוואות[[#This Row],[עלות בפועל]]","v":{"v":0,"d":"₪ 0.00"}}]
[null,"תשלום רכב",null,null,{"$f":"תחבורה[[#This Row],[עלות מתוכננת]]-תחבורה[[#This Row],[עלות בפועל]]","v":{"v":0,"d":"₪ 0.00"}},null,"סטודנט",null,null,{"$f":"הלוואות[[#This Row],[עלות מתוכננת]]-הלוואות[[#This Row],[עלות בפועל]]","v":{"v":0,"d":"₪ 0.00"}}]
[null,"תשלום עבור אוטובוס/מונית",null,null,{"$f":"תחבורה[[#This Row],[עלות מתוכננת]]-תחבורה[[#This Row],[עלות בפועל]]","v":{"v":0,"d":"₪ 0.00"}},null,"כרטיס אשראי",null,null,{"$f":"הלוואות[[#This Row],[עלות מתוכננת]]-הלוואות[[#This Row],[עלות בפועל]]","v":{"v":0,"d":"₪ 0.00"}}]
[null,"ביטוח",null,null,{"$f":"תחבורה[[#This Row],[עלות מתוכננת]]-תחבורה[[#This Row],[עלות בפועל]]","v":{"v":0,"d":"₪ 0.00"}},null,"כרטיס אשראי",null,null,{"$f":"הלוואות[[#This Row],[עלות מתוכננת]]-הלוואות[[#This Row],[עלות בפועל]]","v":{"v":0,"d":"₪ 0.00"}}]
[null,"רישוי",null,null,{"$f":"תחבורה[[#This Row],[עלות מתוכננת]]-תחבורה[[#This Row],[עלות בפועל]]","v":{"v":0,"d":"₪ 0.00"}},null,"כרטיס אשראי",null,null,{"$f":"הלוואות[[#This Row],[עלות מתוכננת]]-הלוואות[[#This Row],[עלות בפועל]]","v":{"v":0,"d":"₪ 0.00"}}]
[null,"דלק",null,null,{"$f":"תחבורה[[#This Row],[עלות מתוכננת]]-תחבורה[[#This Row],[עלות בפועל]]","v":{"v":0,"d":"₪ 0.00"}},null,"אחר",null,null,{"$f":"הלוואות[[#This Row],[עלות מתוכננת]]-הלוואות[[#This Row],[עלות בפועל]]","v":{"v":0,"d":"₪ 0.00"}}]
[null,"תחזוקה",null,null,{"$f":"תחבורה[[#This Row],[עלות מתוכננת]]-תחבורה[[#This Row],[עלות בפועל]]","v":{"v":0,"d":"₪ 0.00"}},null,"סכום ביניים",null,null,{"$f":"SUBTOTAL(109,הלוואות[הפרש])","v":{"v":0,"d":"₪ 0.00"}}]
[null,"אחר",null,null,{"$f":"תחבורה[[#This Row],[עלות מתוכננת]]-תחבורה[[#This Row],[עלות בפועל]]","v":{"v":0,"d":"₪ 0.00"}}]
[null,"סכום ביניים",null,null,{"$f":"SUBTOTAL(109,תחבורה[הפרש])","v":{"v":0,"d":"₪ 0.00"}},null,"מסים","עלות מתוכננת","עלות בפועל","הפרש"]
[{"$nulls":6},"פדרלי",null,null,{"$f":"מסים[[#This Row],[עלות מתוכננת]]-מסים[[#This Row],[עלות בפועל]]","v":{"v":0,"d":"₪ 0.00"}}]
["הזן פרטים בטבלה 'ביטוח' שמתחילה בתא משמאל ובטבלה 'מסים' שמתחילה בתא G33. ההוראה הבאה מופיעה בתא A42.","ביטוח","עלות מתוכננת","עלות בפועל","הפרש",null,"של המדינה",null,null,{"$f":"מסים[[#This Row],[עלות מתוכננת]]-מסים[[#This Row],[עלות בפועל]]","v":{"v":0,"d":"₪ 0.00"}}]
[null,"בית",null,null,{"$f":"ביטוח[[#This Row],[עלות מתוכננת]]-ביטוח[[#This Row],[עלות בפועל]]","v":{"v":0,"d":"₪ 0.00"}},null,"מקומי",null,null,{"$f":"מסים[[#This Row],[עלות מתוכננת]]-מסים[[#This Row],[עלות בפועל]]","v":{"v":0,"d":"₪ 0.00"}}]
[null,"בריאות",null,null,{"$f":"ביטוח[[#This Row],[עלות מתוכננת]]-ביטוח[[#This Row],[עלות בפועל]]","v":{"v":0,"d":"₪ 0.00"}},null,"אחר",null,null,{"$f":"מסים[[#This Row],[עלות מתוכננת]]-מסים[[#This Row],[עלות בפועל]]","v":{"v":0,"d":"₪ 0.00"}}]
[null,"חיים",null,null,{"$f":"ביטוח[[#This Row],[עלות מתוכננת]]-ביטוח[[#This Row],[עלות בפועל]]","v":{"v":0,"d":"₪ 0.00"}},null,"סכום ביניים",null,null,{"$f":"SUBTOTAL(109,מסים[הפרש])","v":{"v":0,"d":"₪ 0.00"}}]
[null,"אחר",null,null,{"$f":"ביטוח[[#This Row],[עלות מתוכננת]]-ביטוח[[#This Row],[עלות בפועל]]","v":{"v":0,"d":"₪ 0.00"}}]
[null,"סכום ביניים",null,null,{"$f":"SUBTOTAL(109,ביטוח[הפרש])","v":{"v":0,"d":"₪ 0.00"}},null,"חסכונות או השקעות","עלות מתוכננת","עלות בפועל","הפרש"]
[{"$nulls":6},"חשבון לפרישה",null,null,{"$f":"חסכונות[[#This Row],[עלות מתוכננת]]-חסכונות[[#This Row],[עלות בפועל]]","v":{"v":0,"d":"₪ 0.00"}}]
["הזן פרטים בטבלה 'מזון' שמתחילה בתא משמאל ובטבלה 'חסכונות' שמתחילה בתא G40. ההוראה הבאה מופיעה בתא A48.","מזון","עלות מתוכננת","עלות בפועל","הפרש",null,"חשבון להשקעה",null,null,{"$f":"חסכונות[[#This Row],[עלות מתוכננת]]-חסכונות[[#This Row],[עלות בפועל]]","v":{"v":0,"d":"₪ 0.00"}}]
[null,"מצרכים",null,null,{"$f":"מזון[[#This Row],[עלות מתוכננת]]-מזון[[#This Row],[עלות בפועל]]","v":{"v":0,"d":"₪ 0.00"}},null,"אחר",null,null,{"$f":"חסכונות[[#This Row],[עלות מתוכננת]]-חסכונות[[#This Row],[עלות בפועל]]","v":{"v":0,"d":"₪ 0.00"}}]
[null,"ארוחות מחוץ לבית",null,null,{"$f":"מזון[[#This Row],[עלות מתוכננת]]-מזון[[#This Row],[עלות בפועל]]","v":{"v":0,"d":"₪ 0.00"}},null,"סכום ביניים",null,null,{"$f":"SUBTOTAL(109,חסכונות[הפרש])","v":{"v":0,"d":"₪ 0.00"}}]
[null,"אחר",null,null,{"$f":"מזון[[#This Row],[עלות מתוכננת]]-מזון[[#This Row],[עלות בפועל]]","v":{"v":0,"d":"₪ 0.00"}}]
[null,"סכום ביניים",null,null,{"$f":"SUBTOTAL(109,מזון[הפרש])","v":{"v":0,"d":"₪ 0.00"}},null,"מתנות ותרומות","עלות מתוכננת","עלות בפועל","הפרש"]
[{"$nulls":6},"צדקה 1",null,null,{"$f":"מתנות[[#This Row],[עלות מתוכננת]]-מתנות[[#This Row],[עלות בפועל]]","v":{"v":0,"d":"₪ 0.00"}}]
["הזן פרטים בטבלה 'חיות מחמד' שמתחילה בתא משמאל ובטבלה 'מתנות' שמתחילה בתא G46. ההוראה הבאה מופיעה בתא A56.","חיות מחמד","עלות מתוכננת","עלות בפועל","הפרש",null,"צדקה 2",null,null,{"$f":"מתנות[[#This Row],[עלות מתוכננת]]-מתנות[[#This Row],[עלות בפועל]]","v":{"v":0,"d":"₪ 0.00"}}]
[null,"מזון",null,null,{"$f":"חיות_מחמד[[#This Row],[עלות מתוכננת]]-חיות_מחמד[[#This Row],[עלות בפועל]]","v":{"v":0,"d":"₪ 0.00"}},null,"צדקה 3",null,null,{"$f":"מתנות[[#This Row],[עלות מתוכננת]]-מתנות[[#This Row],[עלות בפועל]]","v":{"v":0,"d":"₪ 0.00"}}]
[null,"תרופות",null,null,{"$f":"חיות_מחמד[[#This Row],[עלות מתוכננת]]-חיות_מחמד[[#This Row],[עלות בפועל]]","v":{"v":0,"d":"₪ 0.00"}},null,"סכום ביניים",null,null,{"$f":"SUBTOTAL(109,מתנות[הפרש])","v":{"v":0,"d":"₪ 0.00"}}]
[null,"טיפוח",null,null,{"$f":"חיות_מחמד[[#This Row],[עלות מתוכננת]]-חיות_מחמד[[#This Row],[עלות בפועל]]","v":{"v":0,"d":"₪ 0.00"}}]
[null,"צעצועים",null,null,{"$f":"חיות_מחמד[[#This Row],[עלות מתוכננת]]-חיות_מחמד[[#This Row],[עלות בפועל]]","v":{"v":0,"d":"₪ 0.00"}},null,"משפטי","עלות מתוכננת","עלות בפועל","הפרש"]
[null,"אחר",null,null,{"$f":"חיות_מחמד[[#This Row],[עלות מתוכננת]]-חיות_מחמד[[#This Row],[עלות בפועל]]","v":{"v":0,"d":"₪ 0.00"}},null,"עורך דין",null,null,{"$f":"הוצאות_משפטיות[[#This Row],[עלות מתוכננת]]-הוצאות_משפטיות[[#This Row],[עלות בפועל]]","v":{"v":0,"d":"₪ 0.00"}}]
[null,"סכום ביניים",null,null,{"$f":"SUBTOTAL(109,חיות_מחמד[הפרש])","v":{"v":0,"d":"₪ 0.00"}},null,"דמי מזונות",null,null,{"$f":"הוצאות_משפטיות[[#This Row],[עלות מתוכננת]]-הוצאות_משפטיות[[#This Row],[עלות בפועל]]","v":{"v":0,"d":"₪ 0.00"}}]
[{"$nulls":6},"תשלומי שעבוד",null,null,{"$f":"הוצאות_משפטיות[[#This Row],[עלות מתוכננת]]-הוצאות_משפטיות[[#This Row],[עלות בפועל]]","v":{"v":0,"d":"₪ 0.00"}}]
["הזן פרטים בטבלה 'בריאות וטיפוח' שמתחילה בתא משמאל ובטבלה 'משפטי' שמתחילה בתא G52. ההוראה הבאה מופיעה בתא A59.","בריאות וטיפוח","עלות מתוכננת","עלות בפועל","הפרש",null,"אחר",null,null,{"$f":"הוצאות_משפטיות[[#This Row],[עלות מתוכננת]]-הוצאות_משפטיות[[#This Row],[עלות בפועל]]","v":{"v":0,"d":"₪ 0.00"}}]
[null,"תרופות",null,null,{"$f":"טיפוח_אישי[[#This Row],[עלות מתוכננת]]-טיפוח_אישי[[#This Row],[עלות בפועל]]","v":{"v":0,"d":"₪ 0.00"}},null,"סכום ביניים",null,null,{"$f":"SUBTOTAL(109,הוצאות_משפטיות[הפרש])","v":{"v":0,"d":"₪ 0.00"}}]
[null,"שיער/ציפורניים",null,null,{"$f":"טיפוח_אישי[[#This Row],[עלות מתוכננת]]-טיפוח_אישי[[#This Row],[עלות בפועל]]","v":{"v":0,"d":"₪ 0.00"}}]
["העלות המתוכננת הכוללת מחושבת באופן אוטומטי בתא J59, העלות הכוללת בפועל מחושבת באופן אוטומטי בתא J61, וההפרש הכולל מחושב באופן אוטומטי בתא J63.","בגדים",null,null,{"$f":"טיפוח_אישי[[#This Row],[עלות מתוכננת]]-טיפוח_אישי[[#This Row],[עלות בפועל]]","v":{"v":0,"d":"₪ 0.00"}},null,"עלות מתוכננת כוללת",null,null,{"$f":"SUBTOTAL(109,דיור[עלות מתוכננת],תחבורה[עלות מתוכננת],ביטוח[עלות מתוכננת],מזון[עלות מתוכננת],חיות_מחמד[עלות מתוכננת],טיפוח_אישי[עלות מתוכננת],בידור[עלות מתוכננת],הלוואות[עלות מתוכננת],מסים[עלות מתוכננת],חסכונות[עלות מתוכננת],מתנות[עלות מתוכננת],הוצאות_משפטיות[עלות מתוכננת])","v":{"v":1195,"d":"₪ 1,195.00"}}]
[null,"ניקוי יבש",null,null,{"$f":"טיפוח_אישי[[#This Row],[עלות מתוכננת]]-טיפוח_אישי[[#This Row],[עלות בפועל]]","v":{"v":0,"d":"₪ 0.00"}}]
[null,"מועדון בריאות",null,null,{"$f":"טיפוח_אישי[[#This Row],[עלות מתוכננת]]-טיפוח_אישי[[#This Row],[עלות בפועל]]","v":{"v":0,"d":"₪ 0.00"}},null,"עלות כוללת בפועל",null,null,{"$f":"SUBTOTAL(109,דיור[עלות בפועל],תחבורה[עלות בפועל],ביטוח[עלות בפועל],מזון[עלות בפועל],חיות_מחמד[עלות בפועל],טיפוח_אישי[עלות בפועל],בידור[עלות בפועל],הלוואות[עלות בפועל],מסים[עלות בפועל],חסכונות[עלות בפועל],מתנות[עלות בפועל],הוצאות_משפטיות[עלות בפועל])","v":{"v":1236,"d":"₪ 1,236.00"}}]
[null,"תשלומים או עמלות של ארגון",null,null,{"$f":"טיפוח_אישי[[#This Row],[עלות מתוכננת]]-טיפוח_אישי[[#This Row],[עלות בפועל]]","v":{"v":0,"d":"₪ 0.00"}}]
[null,"אחר",null,null,{"$f":"טיפוח_אישי[[#This Row],[עלות מתוכננת]]-טיפוח_אישי[[#This Row],[עלות בפועל]]","v":{"v":0,"d":"₪ 0.00"}},null,"הפרש כולל",null,null,{"$f":"J59-J61","v":{"v":-41,"d":"₪ 41.00"}}]
[null,"סכום ביניים",null,null,{"$f":"SUBTOTAL(109,טיפוח_אישי[הפרש])","v":{"v":0,"d":"₪ 0.00"}}]